Cogmind - Beta 14 @@@ ROGUE MODE // 2024.11.20 @ 19:54:16 Player: skye Result: Destroyed by G-47 Trooper with Particle Gun Performance ------------- Evolutions (0) 0 Regions Visited (2) 400 Robots Destroyed (8) 40 Value Destroyed (303) 303 Prototype IDs (0) 0 Alien Tech Used (0) 0 Bonus (0) 0 TOTAL SCORE: 743 Bonus ------- None Cogmind --------- Core Integrity 0/250 Matter 276/300 Energy 97/100 System Corruption 3% Temperature Cool (75) Movement Rolling (100) Location -10/Mines Parts ------- > --- POWER (1) -------- (None) > --- PROPULSION (2) --- Compact Wheel > --- UTILITY (2) ------ Medium Storage Unit > --- WEAPON (2) ------- Small Laser > --- INVENTORY (10) --- Improved Heat Sink Sensor Array Peak State ------------ > --- POWER ------------ (None) > --- PROPULSION ------- Compact Wheel Compact Wheel > --- UTILITY ---------- Improved Heat Sink Medium Storage Unit > --- WEAPON ----------- EM Pulse Gun EM Pulse Gun > --- INVENTORY -------- Sensor Array Small Laser [Rating: 8] Favorites ----------- Power Ion Engine Engine Ion Engine Propulsion Light Treads Treads Light Treads Leg Aluminum Leg Wheel Compact Wheel Utility Medium Storage Unit Device Sensor Array Storage Medium Storage Unit Weapon EM Pulse Gun Energy Gun EM Pulse Gun Ballistic Gun Assault Rifle Build | -11 -10 -10 ------- Run | Yrd Mat Min Slots Evolved . | . . . Power . | . . . Propulsion . | . . . Utility . | . . . Weapon . | . . . Parts Attached 15 | . 14 1 Power 2 | . 2 . Engine 2 | . 2 . Core . | . . . Reactor . | . . . Propulsion 4 | . 4 . Treads 2 | . 2 . Leg . | . . . Wheel 2 | . 2 . Hover . | . . . Flight . | . . . Utility 4 | . 4 . Device 3 | . 3 . Storage 1 | . 1 . Processor . | . . . Hackware . | . . . Protection . | . . . Artifact . | . . . Weapon 5 | . 4 1 Energy Gun 4 | . 3 1 Energy Cannon . | . . . Ballistic Gun 1 | . 1 . Ballistic Cannon . | . . . Launcher . | . . . Special Weapon . | . . . Impact Weapon . | . . . Slashing Weapon . | . . . Piercing Weapon . | . . . Special Melee Weapon . | . . . Unidentified Prototypes . | . . . Corrupted Parts 1 | . 1 . System Corruption 2 | . 2 . Parts Lost 11 | . 7 4 Power 3 | . 2 1 Propulsion 3 | . 2 1 Utility 1 | . 1 . Weapon 4 | . 2 2 Highest Loss Streak 3 | . 3 3 To Critical Strikes . | . . . Average Slot Usage (%) 84 | . 88 77 Engine 13 | . 12 13 Treads 13 | . 20 . Wheel 13 | . 6 24 Device 4 | . 7 . Storage 14 | . 14 14 Energy Gun 18 | . 15 24 Ballistic Gun 6 | . 10 . Peak Build Rating 8 | . 8 6 Average Rating 5 | . 6 5 On Entrance 6 | 6 6 6 Naked Turns . | . . . Heaviest Build 19 | 13 19 19 Greatest Support 40 | 20 40 32 Greatest Overweight (x) . | . . . Average Overweight (x) . | . . . Largest Inventory Capacity 10 | . 10 10 Average Capacity 9 | . 8 10 Most Carried 8 | . 8 3 Average Carried 3 | . 4 2 Final Capacity 10 | 8 10 10 Final Carried 6 | 6 3 2 Class Distribution -------------------- 100% | Mutant Dominant Class ---------------- Mutant | -10/Materials Mutant | -10/Mines Resources | -11 -10 -10 ----------- Run | Yrd Mat Min Matter Collected 406 | 176 184 46 Remotely . | . . . Salvage Created 324 | . 234 90 Parts 12 | . 9 3 Haulers Intercepted . | . . . Recyclers Shooed . | . . . Parts Field Recycled . | . . . Retrieved Matter . | . . . Parts Self-Destructed . | . . . Prevented . | . . . Kills | -11 -10 -10 ------- Run | Yrd Mat Min Combat Hostiles Destroyed 7 | . 5 2 Melee 1 | . 1 . Guns 6 | . 4 2 Classes Destroyed 2 | . 2 . Watcher 1 | . 1 . Grunt 7 | . 5 2 Best Kill Streak 2 | . 2 2 Combat Bots Only 2 | . 2 2 Max Kills in Single Turn 1 | . 1 1 Gunslinging . | . . . Exploded . | . . . Melee 1 | . 1 . Uniques/NPCs Destroyed . | . . . Combat | -11 -10 -10 -------- Run | Yrd Mat Min Hostile Shots Fired 128 | . 94 34 Missed 37 | . 27 10 Damage Taken 1228 | . 881 347 Core 264 | . 126 138 Absorbed by Shields . | . . . Core Remaining (%) 100 | 100 . . Volleys Fired 63 | . 43 20 Largest 2 | . 2 2 Hottest 80 | . 80 80 Shots Fired 83 | . 62 21 Gun 83 | . 62 21 Cannon . | . . . Launcher . | . . . Special . | . . . Kinetic 39 | . 39 . Thermal 13 | . . 13 Explosive . | . . . Electromagnetic 31 | . 23 8 Robot Hit Streak 5 | . 4 5 Robot Miss Streak 4 | . 4 1 Penetration Max . | . . . Secondary Targets . | . . . Shots Hit Robots 51 | . 37 14 Core Hits 19 | . 14 5 Critical Kills . | . . . Critical Parts Destroyed . | . . . Critical Strikes 1 | . 1 . Corrupt 1 | . 1 . Melee Attacks . | . . . Impact . | . . . Slashing . | . . . Piercing . | . . . Sneak Attacks . | . . . Combat Hostiles . | . . . Follow-up Attacks . | . . . Damage Inflicted 759 | . 551 208 Guns 711 | . 541 170 Cannons . | . . . Explosions 38 | . . 38 Melee . | . . . Ramming 10 | . 10 . Kinetic 296 | . 296 . Thermal 156 | . . 156 Explosive . | . . . Electromagnetic 297 | . 245 52 Impact . | . . . Slashing . | . . . Piercing . | . . . Highest Corruption 3 | . 3 3 Average Corruption 2 | . 2 3 Corruption Purged . | . . . Corruption Blocked . | . . . Effects 5 | . 2 3 Message Errors 2 | . 1 1 Matter Fused 2 | . 1 1 Data Loss (minor) 1 | . . 1 Overload Shots . | . . . Overflow Damage . | . . . Projectiles . | . . . Explosions . | . . . Melee . | . . . Knockbacks . | . . . Impact . | . . . Kinetic . | . . . Secondary . | . . . Self-Inflicted Damage 21 | . 5 16 Shots 1 | . . 1 Rammed 1 | . 1 . Targets Rammed 1 | . 1 . Kicked . | . . . Crushed . | . . . Highest Temperature 174 | . 174 87 Average Temperature 60 | . 66 50 Received Heat Transfer 678 | . 495 183 Siege Activations . | . . . Robots Corrupted . | . . . Combat Hostiles . | . . . Parts Fried . | . . . Impact Corruptions . | . . . Robots Melted . | . . . Combat Hostiles . | . . . Parts Melted . | . . . Heat Transferred 325 | . . 325 Parts Sabotaged . | . . . Parts Stolen . | . . . Parts Stripped . | . . . Power Chain Reactions . | . . . Alert | -11 -10 -10 ------- Run | Yrd Mat Min Peak Influence 170 | . 170 115 Initial 66 | . . 66 Average 62 | . 53 80 Maximum Alert Level . | . . . Low Security (%) 100 | . 100 100 Level 1 . | . . . Level 2 . | . . . Level 3 . | . . . Level 4 . | . . . Level 5 . | . . . High Security . | . . . Max Security . | . . . Squads Dispatched 3 | . 3 . Investigation 2 | . 2 . Extermination . | . . . Reinforcement 1 | . 1 . Assault . | . . . Garrison . | . . . Intercept . | . . . Searches Triggered . | . . . Construction Impeded . | . . . Haulers Reinforced . | . . . Active Scanning Responses . | . . . Cargo Convoy Interrupts . | . . . Stealth | -11 -10 -10 --------- Run | Yrd Mat Min Distress Signals . | . . . Communications Jammed . | . . . Distress Signals . | . . . Times Spotted 19 | . 15 4 Peak Tracking Total 4 | . 4 2 Tactical Retreats 4 | . 4 . Traps | -11 -10 -10 ------- Run | Yrd Mat Min Traps Triggered . | . . . Indirectly . | . . . Trap Hack Attempts . | . . . Triggered . | . . . Disarmed . | . . . Reprogrammed . | . . . Reused . | . . . Traps Extracted . | . . . Installed . | . . . Triggered 1 | . 1 . Machines | -11 -10 -10 ---------- Run | Yrd Mat Min Machines Disabled 1 | . . 1 Max in Single Turn 1 | . . 1 Machines Repaired . | . . . Machines Dismantled . | . . . Machines Sabotaged . | . . . Overloaded Fab Kills . | . . . Hacking | -11 -10 -10 --------- Run | Yrd Mat Min Machines Accessed 4 | . 3 1 Terminals 4 | . 3 1 Fabricators . | . . . Repair Stations . | . . . Recycling Units . | . . . Scanalyzers . | . . . Garrison Access . | . . . Total Hacks 9 | . 6 3 Successful 6 | . 5 1 Failed 3 | . 1 2 Catastrophic . | . . . Database Lockouts . | . . . Manual 9 | . 6 3 Terminals 9 | . 6 3 Fabricators . | . . . Repair Stations . | . . . Recycling Units . | . . . Scanalyzers . | . . . Garrison Access . | . . . Terminal Hacks 3 | . 2 1 Locate Traps 1 | . 1 . Dispatch Records 1 | . . 1 Recall Investigation 1 | . 1 . Fabricator Hacks . | . . . Repair Station Hacks . | . . . Recycling Unit Hacks . | . . . Scanalyzer . | . . . Garrison Access Hacks . | . . . Unauthorized Hacks 3 | . 3 . Terminals 3 | . 3 . Botnet 3 | . 3 . Fabricators . | . . . Repair Stations . | . . . Recycling Units . | . . . Scanalyzers . | . . . Garrison Access . | . . . Data Cores Recovered . | . . . Used . | . . . Hacking Detections 2 | . 1 1 Full Trace Events . | . . . Feedback Events . | . . . Feedback Blocked . | . . . Robot Schematics Acquired . | . . . Robots Built . | . . . Authchips . | . . . Time . | . . . Total Robot Build Rating . | . . . Part Schematics Acquired . | . . . Parts Built . | . . . Authchips . | . . . Time . | . . . Total Part Build Rating . | . . . Parts Repaired . | . . . Time . | . . . Parts Recycled . | . . . Recycled Matter . | . . . Retrieved Matter . | . . . Retrieved Components . | . . . Parts Scanalyzed . | . . . Part Schematics Acquired . | . . . Parts Damaged . | . . . Bothacking | -11 -10 -10 ------------ Run | Yrd Mat Min Used RIF Installer . | . . . Robots Hacked . | . . . Non-combat . | . . . Combat . | . . . Robot Hacks Applied . | . . . Relay Couplers Released . | . . . Fabnet Peak Effective % . | . . . Robots Rewired . | . . . Allies Hacked . | . . . Hacks Repelled . | . . . Allies | -11 -10 -10 -------- Run | Yrd Mat Min Total Allies . | . . . Largest Group . | . . . Highest-Rated Group . | . . . Highest-Rated Ally . | . . . Total Orders . | . . . Ally Attacks . | . . . Total Damage . | . . . Kills . | . . . Allies Corrupted . | . . . Allies Melted . | . . . Intel | -11 -10 -10 ------- Run | Yrd Mat Min Robot Analysis Total . | . . . Derelict Logs Recovered 1 | . . 1 Drone Launches . | . . . Drone Recoveries . | . . . Exploration | -11 -10 -10 ------------- Run | Yrd Mat Min Turns Passed 1059 | . 692 367 Spaces Moved 655 | 1 328 326 Core . | . . . Treads 198 | . 198 . Legs 6 | 1 5 . Wheels 451 | . 125 326 Hover . | . . . Flight . | . . . Fastest Speed 100 | 120 100 100 Average Speed 118 | 120 136 100 Slowest Speed 160 | 120 160 100 Overloaded Moves . | . . . Propulsion Burnouts . | . . . Robots Hopped . | . . . Cave-ins Triggered . | . . . Exploration Rate (%) 28 | 2 35 48 Regions Visited 2 Branch Regions 1 Pre-discovered Areas . | . . . Known Exits Taken . | . . . Unknown Exits Taken 2 | 1 1 . Scrap Searched 1 | . . 1 Spaces Dug . | . . . Terrain Destroyed 10 | . . 10 Melee . | . . . Projectile . | . . . AOE 10 | . . 10 Terrain Rammed . | . . . Walls Destroyed . | . . . Machines Disabled . | . . . Actions | -11 -10 -10 --------- Run | Yrd Mat Min Total 857 | . 510 347 Wait 115 | . 115 . Move 653 | . 327 326 Hop . | . . . Pick Up 3 | . 3 . Fast Attach 3 | . 3 . Attach 9 | . 8 1 Detach 4 | . 4 . Swap 3 | . 3 . Drop 3 | . 3 . Fire 63 | . 43 20 Melee . | . . . Ram 1 | . 1 . Kick . | . . . Crush . | . . . Escape Stasis . | . . . Rewire . | . . . Trap . | . . . Miscellaneous . | . . . Route ------- -11/Scrapyard -10/Materials -10/Mines History --------- Turn | Location | Event 1 | -11/Scrapyard | Discovered new exit (range 0) 1 | -11/Scrapyard | Entered Materials 302 | -10/Materials | Build established: Mutant 392 | -10/Materials | Discovered new exit (range 9) 501 | -10/Materials | Derelicts attacked the area 551 | -10/Materials | Lost 3 parts (2n1w) 570 | -10/Materials | Core integrity fell below 50% 650 | -10/Materials | Lost 3 parts (1p1u1w) 693 | -10/Materials | Entered Mines 698 | -10/Mines | Learned 4 Materials zone layouts 969 | -10/Mines | Core integrity fell below 20% 1010 | -10/Mines | Lost 3 parts (1n2w) 1060 | -10/Mines | Destroyed by G-47 Trooper with Particle Gun Last Messages --------------- 3x Patrol System corrupted: Matter fused (-10). System corrupted: Component data lost. T-07 Excavator is excavating. U1 5603 QAORN7CC9WYBKJVMERW K-01 Serf cleans the Plasma Injector. Plasma Injector explodes. K-01 Serf collects debris. EM Pulse Gun destroyed. K-01 Serf collects debris. G-47 Trooper misfires. EM Pulse Gun destroyed. K-01 Serf collects debris. G-47 Trooper destroyed. K-01 Serf collects debris. Com. Wheel destroyed. K-01 Serf collects debris. G-34 Mercenary destroyed. K-01 Serf collects debris. Ion Engine destroyed. Map ----- +----------------------------------------------------+ | ?????????????????????????????????????????????????? | | ?????????????????????????????????????????????????? | | ?????????????????????????????????????????????????? | | ????????????????????????????#######??????????????? | | ????????????????????????##### ##?????????????? | | ????#??????????????????## #?????????????? | | ???? ??????????????????# #?????????????? | | ???? ??????????????????# ### ##?????????????? | | ???? ??????????????????# ###?####??????????????? | | ???? ??????????????????# ##?????????????????????? | | ???? ??????????????????# #??????????????????????? | | ???? ????????#####????## #??????????????????????? | | ???# #??????## ###### #??????????????????????? | | ???# ?????## ## ##?####????????????????? | | ???# #????## ### ##???????????????? | | ???# #????# #######?????????? | | ???# #?#### #?????????? | | ???# #?#"" ### #?????????? | | ???# #""" ## ##?#gg ##### ###???????? | | ???# #"%! #### ##??# ## ####?### ##??????? | | ???# [% #??########!!## #???## = #??????? | | ???##" ! #???### ## ## #???# #??????? | | #####" #???# ## #???# #??????? | | ## ##???## ## #???# ! ! #??????? | | ""###?????### ## #???## !! ##??????? | | #####??????????## @ # ????## ##???????? | | ##???????????????## ###?????# ##????????? | | # #?????????????????# ##??????# #?????????? | | ### #?????????????????# #??????# #?????????? | | ### #?????????????????## #?????? #?????????? | | #??????????????????## ##??????# #?????????? | | ### #???????????????????# ##???????# ?????????? | | ## #??????????########## #???????? ?????????? | | # ##?????????# #???????? ?????????? | | # #?????????# ##########???????? ?????????? | | # #????????## ###??????????????? ????????? | | #????????# #???????????????? ?????????? | | # ##????????# #????????????????????????????? | | # ###?????????# #????????????????????????????? | | # #???????????# #????????????????????????????? | | # #???????????# #????????????????????????????? | | # #???????????# #????????????????????????????? | | # #???????????##T###????????????????????????????? | | # #????????????###??????????????????????????????? | | # #?????????????????????????????????????????????? | | # #?????????????????????????????????????????????? | | # #?????????????????????????????????????????????? | | # #?????????????????????????????????????????????? | | # #?????????????????????????????????????????????? | | # #?###?????????????????????????????????????????? | +----------------------------------------------------+ Best States ------------- Heat Dissipation 25 Energy Generation 10 Energy Capacity 250 Matter Stores 276 Matter Capacity 300 Sight Range 16 Robot Scan Range 14 Terrain Scan Density 10 Evasion (%) 40 Recoil Reduction 2 Item Schematics ----------------- None Robot Schematics ------------------ None Fabricated ------------ Nothing Alien Tech Used ----------------- None Achievements -------------- None Challenges ------------ None Game ------ Seed ExpertPlatingMeganuke Manual? 0 Play Time 00:09:21 Cumulative 48.4 hours Start 2024.11.20 @ 19:47:06 End 2024.11.20 @ 19:54:16 Sessions 1 Manual Loads 0 Difficulty Rogue Special Mode None Game No. 57 Rogue 13 Adventurer 44 Explorer 0 Win Type - Total 0 Types 0/0/0/0/0/0/0/0/0 Lore% 18 Gallery% 42 Achievement% 30 Wizard Run 0 Options --------- Layout 1 ASCII 0 Keyboard 1 Movement Vi Keybinds 0 Fullscreen 1 Font 24/Terminus Map View 50x40 Zoom Use 0% Tactical HUD 0 Map Filters NONE Filters NONE Steam 1 RUN: 832ede66-4cee-4c9a-beb9-fbdacbc669d2